[Event "Late-Titled-Tuesday-Blitz-February-13-2024"]
[Site "Chess.com"]
[Date "2024.02.13"]
[Round "8"]
[White "cande_francisco"]
[Black "CarlosjPineror"]
[Result "1/2-1/2"]
[WhiteElo "2501"]
[BlackElo "2686"]
[TimeControl "180+1"]
[EndTime "15:29:38 PST"]
[Termination "Game drawn by stalemate"]

1. e4 {[%clk 0:03:00.9]} 1... c5 {[%clk 0:02:59.9]} 2. Nf3 {[%clk 0:03:01]} 2...
e6 {[%clk 0:03:00.4]} 3. d4 {[%clk 0:03:01.2]} 3... cxd4 {[%clk 0:03:01.3]} 4.
Nxd4 {[%clk 0:03:02.1]} 4... a6 {[%clk 0:03:02]} 5. Bd3 {[%clk 0:03:02.4]} 5...
Qc7 {[%clk 0:03:02.7]} 6. O-O {[%clk 0:03:02.3]} 6... Nf6 {[%clk 0:03:03.3]} 7.
Qe2 {[%clk 0:03:02.7]} 7... h5 {[%clk 0:03:04.1]} 8. e5 {[%clk 0:01:37]} 8...
Ng4 {[%clk 0:03:03.8]} 9. Bf4 {[%clk 0:01:34.6]} 9... f5 {[%clk 0:03:01.9]} 10.
h3 {[%clk 0:01:32.1]} 10... Bc5 {[%clk 0:02:58]} 11. Nb3 {[%clk 0:01:26.7]}
11... Ba7 {[%clk 0:02:57.3]} 12. hxg4 {[%clk 0:01:20.6]} 12... hxg4 {[%clk
0:02:58.2]} 13. Nc3 {[%clk 0:01:16.5]} 13... Nc6 {[%clk 0:02:57]} 14. g3 {[%clk
0:01:14.3]} 14... b5 {[%clk 0:02:55.9]} 15. Kg2 {[%clk 0:01:06.3]} 15... Bb7
{[%clk 0:02:54.6]} 16. f3 {[%clk 0:01:07]} 16... gxf3+ {[%clk 0:02:53.4]} 17.
Rxf3 {[%clk 0:01:07.6]} 17... Nb4 {[%clk 0:02:31.1]} 18. Bxb5 {[%clk 0:00:41.1]}
18... O-O-O {[%clk 0:01:30.4]} 19. a3 {[%clk 0:00:34]} 19... Nd5 {[%clk
0:01:26.4]} 20. Bxa6 {[%clk 0:00:32.1]} 20... Nxc3 {[%clk 0:01:22.8]} 21. bxc3
{[%clk 0:00:19.5]} 21... Kb8 {[%clk 0:01:07.1]} 22. Bxb7 {[%clk 0:00:19.7]}
22... Qxb7 {[%clk 0:01:07]} 23. Rb1 {[%clk 0:00:19.1]} 23... Ka8 {[%clk
0:01:06]} 24. Nd2 {[%clk 0:00:18.7]} 24... Qc6 {[%clk 0:00:57.9]} 25. Qb5 {[%clk
0:00:18.5]} 25... Rh5 {[%clk 0:00:47.3]} 26. Qxc6+ {[%clk 0:00:18.3]} 26... dxc6
{[%clk 0:00:47.3]} 27. Rh1 {[%clk 0:00:15]} 27... Rdh8 {[%clk 0:00:45.3]} 28.
Rxh5 {[%clk 0:00:14.9]} 28... Rxh5 {[%clk 0:00:46.2]} 29. Nc4 {[%clk 0:00:14.4]}
29... g5 {[%clk 0:00:45.9]} 30. Be3 {[%clk 0:00:15]} 30... c5 {[%clk 0:00:40.7]}
31. Rf1 {[%clk 0:00:14.4]} 31... Kb7 {[%clk 0:00:38]} 32. Rd1 {[%clk 0:00:14.7]}
32... Rh7 {[%clk 0:00:26.5]} 33. Rd6 {[%clk 0:00:13.8]} 33... Rh6 {[%clk
0:00:12.8]} 34. Bxg5 {[%clk 0:00:13.5]} 34... Rg6 {[%clk 0:00:13.4]} 35. Bf4
{[%clk 0:00:12.4]} 35... Bb8 {[%clk 0:00:12.8]} 36. Na5+ {[%clk 0:00:08.7]}
36... Kc7 {[%clk 0:00:11]} 37. Rc6+ {[%clk 0:00:09.3]} 37... Kd7 {[%clk
0:00:11.5]} 38. Rxc5 {[%clk 0:00:09.7]} 38... Ba7 {[%clk 0:00:11.9]} 39. Rb5
{[%clk 0:00:08.4]} 39... Kc8 {[%clk 0:00:10.8]} 40. Nc4 {[%clk 0:00:08]} 40...
Kc7 {[%clk 0:00:10]} 41. Nd6 {[%clk 0:00:08.6]} 41... Kc6 {[%clk 0:00:08.9]} 42.
Ra5 {[%clk 0:00:08.6]} 42... Bb6 {[%clk 0:00:08.5]} 43. Ra6 {[%clk 0:00:09.2]}
43... Kd5 {[%clk 0:00:03.6]} 44. Rxb6 {[%clk 0:00:09.1]} 44... Rxg3+ {[%clk
0:00:03.9]} 45. Kf2 {[%clk 0:00:06.5]} 45... Rxc3 {[%clk 0:00:03.7]} 46. Bd2
{[%clk 0:00:04.7]} 46... Rxc2 {[%clk 0:00:03.9]} 47. Ke3 {[%clk 0:00:05]} 47...
Kxe5 {[%clk 0:00:04.3]} 48. Nb5 {[%clk 0:00:05.2]} 48... Ra2 {[%clk 0:00:03.5]}
49. Bc3+ {[%clk 0:00:04.4]} 49... Kd5 {[%clk 0:00:04]} 50. Kd3 {[%clk
0:00:04.8]} 50... Kc5 {[%clk 0:00:03.1]} 51. Rb8 {[%clk 0:00:04.9]} 51... e5
{[%clk 0:00:02.9]} 52. Bxe5 {[%clk 0:00:04.4]} 52... Rg2 {[%clk 0:00:01.4]} 53.
Bd4+ {[%clk 0:00:04.8]} 53... Kd5 {[%clk 0:00:01.8]} 54. Rb6 {[%clk 0:00:04.3]}
54... Rg3+ {[%clk 0:00:01.5]} 55. Kd2 {[%clk 0:00:03.6]} 55... Rh3 {[%clk
0:00:02.4]} 56. Bf2 {[%clk 0:00:03.5]} 56... Kc4 {[%clk 0:00:03.3]} 57. Nd6+
{[%clk 0:00:03.7]} 57... Kd5 {[%clk 0:00:03.6]} 58. Nxf5 {[%clk 0:00:04.6]}
58... Rf3 {[%clk 0:00:03.8]} 59. Ke2 {[%clk 0:00:02.4]} 59... Rxf5 {[%clk
0:00:04.2]} 60. Rb5+ {[%clk 0:00:02.8]} 60... Ke4 {[%clk 0:00:04.6]} 61. Rxf5
{[%clk 0:00:03.7]} 61... Kxf5 {[%clk 0:00:05.5]} 62. Kd3 {[%clk 0:00:04.3]}
62... Ke6 {[%clk 0:00:06.2]} 63. Kc4 {[%clk 0:00:05.2]} 63... Kd7 {[%clk
0:00:07]} 64. Kb5 {[%clk 0:00:06.1]} 64... Kc7 {[%clk 0:00:07.3]} 65. Ka6 {[%clk
0:00:04.8]} 65... Kb8 {[%clk 0:00:07.6]} 66. Bb6 {[%clk 0:00:05.3]} 66... Ka8
{[%clk 0:00:08.5]} 67. Ba5 {[%clk 0:00:06.2]} 67... Kb8 {[%clk 0:00:09.1]} 68.
Bb4 {[%clk 0:00:07.1]} 68... Ka8 {[%clk 0:00:10]} 69. Bc5 {[%clk 0:00:08]} 69...
Kb8 {[%clk 0:00:10.7]} 70. Bb6 {[%clk 0:00:08.9]} 70... Ka8 {[%clk 0:00:11.6]}
71. a4 {[%clk 0:00:09.6]} 71... Kb8 {[%clk 0:00:12.1]} 72. a5 {[%clk 0:00:10.5]}
72... Ka8 {[%clk 0:00:13]} 73. Kb5 {[%clk 0:00:11.4]} 73... Kb8 {[%clk
0:00:13.7]} 74. a6 {[%clk 0:00:12.3]} 74... Ka8 {[%clk 0:00:14.6]} 75. Ka4
{[%clk 0:00:13.2]} 75... Kb8 {[%clk 0:00:15.5]} 76. Kb3 {[%clk 0:00:14.1]} 76...
Ka8 {[%clk 0:00:16]} 77. Kb4 {[%clk 0:00:15]} 77... Kb8 {[%clk 0:00:16.7]} 78.
a7+ {[%clk 0:00:15.9]} 78... Ka8 {[%clk 0:00:17.6]} 79. Kb5 {[%clk 0:00:15.8]}
79... Kb7 {[%clk 0:00:17.4]} 80. Bc5 {[%clk 0:00:16.7]} 80... Ka8 {[%clk
0:00:18.2]} 81. Bb4 {[%clk 0:00:17.6]} 81... Kb7 {[%clk 0:00:18.9]} 82. Ba5
{[%clk 0:00:18.5]} 82... Ka8 {[%clk 0:00:19.8]} 83. Bb6 {[%clk 0:00:19.4]} 83...
Kb7 {[%clk 0:00:20.5]} 84. Bc5 {[%clk 0:00:20]} 84... Ka8 {[%clk 0:00:21.4]} 85.
Ka6 {[%clk 0:00:20.9]} 1/2-1/2

[Event "Late-Titled-Tuesday-Blitz-February-13-2024"]
[Site "Chess.com"]
[Date "2024.02.13"]
[Round "8"]
[White "aghasiyevkamal"]
[Black "EsmeraldasAnderson03"]
[Result "0-1"]
[WhiteElo "2649"]
[BlackElo "2464"]
[TimeControl "180+1"]
[EndTime "15:29:38 PST"]
[Termination "EsmeraldasAnderson03 won on time"]

1. d4 {[%clk 0:02:59.2]} 1... d5 {[%clk 0:02:59.6]} 2. c4 {[%clk 0:02:58.1]}
2... dxc4 {[%clk 0:03:00.5]} 3. Nf3 {[%clk 0:02:56.2]} 3... Nf6 {[%clk
0:03:01.2]} 4. e3 {[%clk 0:02:55]} 4... e6 {[%clk 0:03:01.7]} 5. Bxc4 {[%clk
0:02:55.4]} 5... a6 {[%clk 0:03:02.6]} 6. O-O {[%clk 0:02:54.1]} 6... c5 {[%clk
0:03:03.3]} 7. a4 {[%clk 0:02:51.4]} 7... Nc6 {[%clk 0:03:01]} 8. Qe2 {[%clk
0:02:51.8]} 8... cxd4 {[%clk 0:03:00.7]} 9. Rd1 {[%clk 0:02:51.8]} 9... Be7
{[%clk 0:03:01.1]} 10. exd4 {[%clk 0:02:52]} 10... O-O {[%clk 0:03:00.2]} 11.
Nc3 {[%clk 0:02:52.3]} 11... Nb4 {[%clk 0:03:00.7]} 12. Bg5 {[%clk 0:02:51.1]}
12... h6 {[%clk 0:02:59.9]} 13. Bh4 {[%clk 0:02:45.8]} 13... b6 {[%clk
0:02:55.2]} 14. Ne5 {[%clk 0:02:40.4]} 14... Bb7 {[%clk 0:02:53.9]} 15. f4
{[%clk 0:02:19.4]} 15... Nfd5 {[%clk 0:02:46.8]} 16. Bg3 {[%clk 0:02:08.9]}
16... Rc8 {[%clk 0:02:38.2]} 17. Rac1 {[%clk 0:02:07.2]} 17... Bh4 {[%clk
0:02:31]} 18. Ne4 {[%clk 0:01:57.6]} 18... Bxg3 {[%clk 0:02:26.4]} 19. hxg3
{[%clk 0:01:56.4]} 19... Rc7 {[%clk 0:02:04.1]} 20. Rf1 {[%clk 0:01:13.5]} 20...
Ne7 {[%clk 0:01:53.1]} 21. Rfd1 {[%clk 0:01:05.4]} 21... Qa8 {[%clk 0:01:47.7]}
22. Nd6 {[%clk 0:01:03.6]} 22... Bd5 {[%clk 0:01:41.5]} 23. Bxd5 {[%clk
0:01:02.9]} 23... Nexd5 {[%clk 0:01:39.7]} 24. Rxc7 {[%clk 0:00:57.8]} 24...
Nxc7 {[%clk 0:01:40.6]} 25. f5 {[%clk 0:00:58.1]} 25... Qd5 {[%clk 0:01:33.3]}
26. Ndxf7 {[%clk 0:00:48.6]} 26... Rxf7 {[%clk 0:01:31.5]} 27. Nxf7 {[%clk
0:00:48.9]} 27... Kxf7 {[%clk 0:01:31.8]} 28. Re1 {[%clk 0:00:36]} 28... Qxd4+
{[%clk 0:01:10.2]} 29. Kh1 {[%clk 0:00:35.8]} 29... e5 {[%clk 0:00:54.4]} 30.
Qh5+ {[%clk 0:00:34.4]} 30... Kg8 {[%clk 0:00:47.5]} 31. f6 {[%clk 0:00:32.1]}
31... Nd3 {[%clk 0:00:34.7]} 32. f7+ {[%clk 0:00:29]} 32... Kf8 {[%clk
0:00:32.9]} 33. Rf1 {[%clk 0:00:21.4]} 33... Nf2+ {[%clk 0:00:19]} 34. Kh2
{[%clk 0:00:21.4]} 34... Ng4+ {[%clk 0:00:18.8]} 35. Kh3 {[%clk 0:00:21.7]}
35... Nf2+ {[%clk 0:00:18.3]} 36. Kh2 {[%clk 0:00:21.6]} 36... Ng4+ {[%clk
0:00:17.6]} 37. Kh3 {[%clk 0:00:22]} 37... Nf6 {[%clk 0:00:11.3]} 38. Rxf6
{[%clk 0:00:22]} 38... gxf6 {[%clk 0:00:11.6]} 39. Qxh6+ {[%clk 0:00:22.5]}
39... Kxf7 {[%clk 0:00:12.4]} 40. Qh7+ {[%clk 0:00:23]} 40... Ke8 {[%clk
0:00:12.5]} 41. Qxc7 {[%clk 0:00:23.4]} 41... Qd7+ {[%clk 0:00:12.8]} 42. Qxd7+
{[%clk 0:00:23.6]} 42... Kxd7 {[%clk 0:00:13.7]} 43. Kg4 {[%clk 0:00:22.5]}
43... Ke6 {[%clk 0:00:13.5]} 44. Kf3 {[%clk 0:00:19.4]} 44... Kd5 {[%clk
0:00:13.3]} 45. Ke3 {[%clk 0:00:18.8]} 45... b5 {[%clk 0:00:11.7]} 46. axb5
{[%clk 0:00:17.8]} 46... axb5 {[%clk 0:00:12.6]} 47. g4 {[%clk 0:00:18.3]} 47...
Kc4 {[%clk 0:00:11.7]} 48. Ke4 {[%clk 0:00:18.1]} 48... Kb3 {[%clk 0:00:11.5]}
49. Kf5 {[%clk 0:00:16.6]} 49... Kxb2 {[%clk 0:00:10.9]} 50. Kxf6 {[%clk
0:00:10.4]} 50... e4 {[%clk 0:00:11.5]} 51. g5 {[%clk 0:00:11.2]} 51... e3
{[%clk 0:00:12.4]} 52. g6 {[%clk 0:00:12.1]} 52... e2 {[%clk 0:00:13.3]} 53. g7
{[%clk 0:00:13]} 53... e1=Q {[%clk 0:00:14.2]} 54. g8=Q {[%clk 0:00:13.5]} 54...
Qf2+ {[%clk 0:00:13.8]} 55. Ke6 {[%clk 0:00:12.5]} 55... Qe2+ {[%clk 0:00:13.2]}
56. Kd6 {[%clk 0:00:12.1]} 56... b4 {[%clk 0:00:12.8]} 57. Qd5 {[%clk
0:00:10.4]} 57... b3 {[%clk 0:00:11.8]} 58. Kc5 {[%clk 0:00:08.5]} 58... Qc2+
{[%clk 0:00:09.3]} 59. Kb4 {[%clk 0:00:07.9]} 59... Ka2 {[%clk 0:00:08.9]} 60.
Qa8+ {[%clk 0:00:06.3]} 60... Kb1 {[%clk 0:00:08.1]} 61. Qa3 {[%clk 0:00:04.7]}
61... b2 {[%clk 0:00:06.7]} 62. Qe3 {[%clk 0:00:02.9]} 62... Qd1 {[%clk
0:00:04.1]} 63. Qe4+ {[%clk 0:00:03.2]} 63... Ka1 {[%clk 0:00:03.3]} 64. Qa8+
{[%clk 0:00:02.9]} 64... Kb1 {[%clk 0:00:04]} 65. Qe4+ {[%clk 0:00:03.1]} 65...
Kc1 {[%clk 0:00:04.6]} 66. Qe3+ {[%clk 0:00:02.9]} 66... Qd2+ {[%clk 0:00:05.3]}
67. Qxd2+ {[%clk 0:00:01.4]} 67... Kxd2 {[%clk 0:00:06.2]} 0-1

[Event "Late-Titled-Tuesday-Blitz-February-13-2024"]
[Site "Chess.com"]
[Date "2024.02.13"]
[Round "8"]
[White "PepeCuenca"]
[Black "ACollins05"]
[Result "0-1"]
[WhiteElo "2649"]
[BlackElo "2463"]
[TimeControl "180+1"]
[EndTime "15:29:40 PST"]
[Termination "ACollins05 won on time"]

1. c4 {[%clk 0:03:00.9]} 1... e6 {[%clk 0:02:59.1]} 2. Nf3 {[%clk 0:03:00.8]}
2... d5 {[%clk 0:02:59]} 3. b3 {[%clk 0:03:00.1]} 3... Nf6 {[%clk 0:02:58.5]} 4.
Bb2 {[%clk 0:03:00.6]} 4... Be7 {[%clk 0:02:58.2]} 5. g3 {[%clk 0:03:01]} 5...
O-O {[%clk 0:02:58.4]} 6. Bg2 {[%clk 0:03:01.7]} 6... b6 {[%clk 0:02:56.2]} 7.
O-O {[%clk 0:03:01.5]} 7... Bb7 {[%clk 0:02:56.4]} 8. e3 {[%clk 0:03:02.1]} 8...
Nbd7 {[%clk 0:02:56.3]} 9. Nc3 {[%clk 0:03:02]} 9... c5 {[%clk 0:02:54.7]} 10.
Qe2 {[%clk 0:02:57.7]} 10... Rc8 {[%clk 0:02:50.7]} 11. Rad1 {[%clk 0:02:57.3]}
11... Qc7 {[%clk 0:02:50.6]} 12. d3 {[%clk 0:02:51.1]} 12... Rfd8 {[%clk
0:02:49.4]} 13. e4 {[%clk 0:02:49.9]} 13... dxe4 {[%clk 0:02:27.7]} 14. dxe4
{[%clk 0:01:12.4]} 14... Nf8 {[%clk 0:02:27.4]} 15. e5 {[%clk 0:00:57.4]} 15...
N6d7 {[%clk 0:02:26.6]} 16. Nb5 {[%clk 0:00:56.7]} 16... Qb8 {[%clk 0:02:24.7]}
17. Nd6 {[%clk 0:00:55.9]} 17... Bxd6 {[%clk 0:02:15.9]} 18. exd6 {[%clk
0:00:55.6]} 18... f6 {[%clk 0:02:13.4]} 19. Bh3 {[%clk 0:00:52.3]} 19... e5
{[%clk 0:02:10.7]} 20. Nh4 {[%clk 0:00:47.2]} 20... g6 {[%clk 0:01:51.5]} 21. f4
{[%clk 0:00:47.1]} 21... e4 {[%clk 0:01:30.1]} 22. f5 {[%clk 0:00:37.3]} 22...
g5 {[%clk 0:01:29.7]} 23. Ng2 {[%clk 0:00:37.5]} 23... Rc6 {[%clk 0:00:55.2]}
24. Qxe4 {[%clk 0:00:24.2]} 24... Rxd6 {[%clk 0:00:52]} 25. Qc2 {[%clk
0:00:16.6]} 25... Rxd1 {[%clk 0:00:51.1]} 26. Rxd1 {[%clk 0:00:17]} 26... Ne5
{[%clk 0:00:46.7]} 27. Bxe5 {[%clk 0:00:15]} 27... Rxd1+ {[%clk 0:00:45.2]} 28.
Qxd1 {[%clk 0:00:15.5]} 28... Qxe5 {[%clk 0:00:44]} 29. Qd2 {[%clk 0:00:15.2]}
29... Qe4 {[%clk 0:00:35.1]} 30. g4 {[%clk 0:00:09.4]} 30... h5 {[%clk 0:00:30]}
31. Qe3 {[%clk 0:00:07.5]} 31... Qb1+ {[%clk 0:00:25.1]} 32. Qe1 {[%clk
0:00:06.6]} 32... Qxa2 {[%clk 0:00:21.1]} 33. gxh5 {[%clk 0:00:06.2]} 33... Qxb3
{[%clk 0:00:19.8]} 34. Ne3 {[%clk 0:00:06.7]} 34... Qd3 {[%clk 0:00:14.9]} 35.
Bg2 {[%clk 0:00:07]} 35... Bxg2 {[%clk 0:00:13.8]} 36. Kxg2 {[%clk 0:00:07.9]}
36... Qe4+ {[%clk 0:00:13.7]} 37. Kg1 {[%clk 0:00:07.2]} 37... Nd7 {[%clk
0:00:14.3]} 38. Qd2 {[%clk 0:00:05.7]} 38... Qd4 {[%clk 0:00:13.2]} 39. Qe2
{[%clk 0:00:03]} 39... Ne5 {[%clk 0:00:12.9]} 40. Kg2 {[%clk 0:00:03.6]} 40...
Qe4+ {[%clk 0:00:12.8]} 41. Kf1 {[%clk 0:00:03.2]} 41... Qf4+ {[%clk 0:00:11.7]}
42. Ke1 {[%clk 0:00:02.8]} 42... Nf3+ {[%clk 0:00:11]} 43. Kd1 {[%clk
0:00:03.4]} 43... Nd4 {[%clk 0:00:11.1]} 44. Qd3 {[%clk 0:00:03.2]} 44... Qf3+
{[%clk 0:00:10.4]} 45. Kc1 {[%clk 0:00:03]} 45... Qh1+ {[%clk 0:00:10]} 46. Kb2
{[%clk 0:00:03]} 46... Qxh2+ {[%clk 0:00:10.5]} 47. Ka3 {[%clk 0:00:02.8]} 47...
Qg3 {[%clk 0:00:08.5]} 48. Ka4 {[%clk 0:00:03.4]} 48... Qf4 {[%clk 0:00:08.1]}
49. Nd5 {[%clk 0:00:03.1]} 49... Qe5 {[%clk 0:00:07.4]} 50. Ka3 {[%clk
0:00:02.8]} 50... Kg7 {[%clk 0:00:07.1]} 51. Ka4 {[%clk 0:00:01.6]} 51... Kh6
{[%clk 0:00:07.2]} 52. Ka3 {[%clk 0:00:02]} 52... g4 {[%clk 0:00:07]} 53. Qd2+
{[%clk 0:00:01.8]} 53... Kxh5 {[%clk 0:00:07.2]} 54. Qd3 {[%clk 0:00:02.4]}
54... g3 {[%clk 0:00:07]} 55. Qd1+ {[%clk 0:00:01.9]} 55... Kh4 {[%clk
0:00:06.7]} 56. Qh1+ {[%clk 0:00:02.2]} 56... Kg4 {[%clk 0:00:06.5]} 57. Qd1+
{[%clk 0:00:02.5]} 57... Qe2 {[%clk 0:00:06]} 58. Nxf6+ {[%clk 0:00:02.2]} 58...
Kxf5 {[%clk 0:00:05.5]} 59. Qxe2 {[%clk 0:00:02.4]} 59... Nxe2 {[%clk 0:00:06]}
60. Nd5 {[%clk 0:00:03.2]} 60... Ke4 {[%clk 0:00:05.2]} 61. Nf6+ {[%clk
0:00:03.5]} 61... Kf3 {[%clk 0:00:05.4]} 62. Nd7 {[%clk 0:00:02.8]} 62... g2
{[%clk 0:00:05.5]} 63. Ne5+ {[%clk 0:00:03.7]} 63... Ke4 {[%clk 0:00:05.8]} 64.
Ka4 {[%clk 0:00:04.6]} 64... g1=Q {[%clk 0:00:05.9]} 65. Kb5 {[%clk 0:00:05.5]}
65... Qb1+ {[%clk 0:00:06.3]} 66. Kc6 {[%clk 0:00:05.8]} 66... Kxe5 {[%clk
0:00:06.5]} 67. Kb7 {[%clk 0:00:01.7]} 67... Qd3 {[%clk 0:00:07.4]} 0-1

[Event "Late-Titled-Tuesday-Blitz-February-13-2024"]
[Site "Chess.com"]
[Date "2024.02.13"]
[Round "8"]
[White "IMRosen"]
[Black "TanitoluwaAps116"]
[Result "1/2-1/2"]
[WhiteElo "2634"]
[BlackElo "2779"]
[TimeControl "180+1"]
[EndTime "15:29:43 PST"]
[Termination "Game drawn by repetition"]

1. d4 {[%clk 0:03:00.9]} 1... Nf6 {[%clk 0:02:47.1]} 2. Bf4 {[%clk 0:03:01.4]}
2... e6 {[%clk 0:02:46.6]} 3. e3 {[%clk 0:03:01.8]} 3... b6 {[%clk 0:02:44.7]}
4. Qf3 {[%clk 0:03:01.8]} 4... Nc6 {[%clk 0:02:43.8]} 5. Nc3 {[%clk 0:03:02.3]}
5... Bb7 {[%clk 0:02:44.1]} 6. O-O-O {[%clk 0:03:02]} 6... d6 {[%clk 0:02:43.8]}
7. h4 {[%clk 0:02:59.8]} 7... h5 {[%clk 0:02:42]} 8. Qg3 {[%clk 0:02:53.1]} 8...
g6 {[%clk 0:02:39.5]} 9. Nf3 {[%clk 0:02:45.2]} 9... Ne7 {[%clk 0:02:34.1]} 10.
Ng5 {[%clk 0:02:42.8]} 10... Nf5 {[%clk 0:02:32.8]} 11. Qh2 {[%clk 0:02:42]}
11... Bg7 {[%clk 0:02:18.8]} 12. e4 {[%clk 0:02:30.8]} 12... Nxd4 {[%clk
0:02:11.1]} 13. f3 {[%clk 0:01:53.3]} 13... Nd7 {[%clk 0:01:50.2]} 14. Be3
{[%clk 0:01:44.1]} 14... Nc6 {[%clk 0:01:44.5]} 15. Bc4 {[%clk 0:01:17.5]} 15...
Qe7 {[%clk 0:01:41.9]} 16. Nb5 {[%clk 0:01:15]} 16... O-O-O {[%clk 0:01:32.9]}
17. c3 {[%clk 0:00:11.8]} 17... Kb8 {[%clk 0:01:27.6]} 18. Rd2 {[%clk
0:00:08.2]} 18... Nde5 {[%clk 0:01:12.7]} 19. Be2 {[%clk 0:00:05.6]} 19... a6
{[%clk 0:01:11.2]} 20. Nd4 {[%clk 0:00:05.7]} 20... Nxd4 {[%clk 0:01:11.1]} 21.
Bxd4 {[%clk 0:00:05.6]} 21... f6 {[%clk 0:01:04.5]} 22. Nh3 {[%clk 0:00:05.6]}
22... Bh6 {[%clk 0:01:04.4]} 23. f4 {[%clk 0:00:05.1]} 23... Ng4 {[%clk
0:01:02]} 24. Bxg4 {[%clk 0:00:05.6]} 24... hxg4 {[%clk 0:01:02.9]} 25. Nf2
{[%clk 0:00:06.4]} 25... e5 {[%clk 0:01:00.4]} 26. Be3 {[%clk 0:00:06.9]} 26...
f5 {[%clk 0:00:55.5]} 27. Re1 {[%clk 0:00:03.1]} 27... Bxf4 {[%clk 0:00:29.2]}
28. Bxf4 {[%clk 0:00:03.2]} 28... Rxh4 {[%clk 0:00:28.4]} 29. Qg3 {[%clk
0:00:02.7]} 29... exf4 {[%clk 0:00:25.8]} 30. Qxf4 {[%clk 0:00:03.6]} 30... fxe4
{[%clk 0:00:21.9]} 31. Rde2 {[%clk 0:00:03]} 31... Rf8 {[%clk 0:00:21.5]} 32.
Qg3 {[%clk 0:00:03]} 32... Qg5+ {[%clk 0:00:19.2]} 33. Kc2 {[%clk 0:00:02.9]}
33... d5 {[%clk 0:00:15.7]} 34. Nd1 {[%clk 0:00:03.3]} 34... Rhh8 {[%clk
0:00:13.1]} 35. Ne3 {[%clk 0:00:03.6]} 35... Qf4 {[%clk 0:00:11.9]} 36. Qxg4
{[%clk 0:00:02.7]} 36... Qxg4 {[%clk 0:00:11.9]} 37. Nxg4 {[%clk 0:00:03.6]}
37... Bc8 {[%clk 0:00:09.5]} 38. Ne3 {[%clk 0:00:03.4]} 38... Be6 {[%clk
0:00:09.2]} 39. Rd2 {[%clk 0:00:03.6]} 39... c6 {[%clk 0:00:09.4]} 40. a4 {[%clk
0:00:03.4]} 40... Kc7 {[%clk 0:00:08.9]} 41. Kc1 {[%clk 0:00:03.7]} 41... Kd6
{[%clk 0:00:08.2]} 42. Nc2 {[%clk 0:00:03.7]} 42... Ke5 {[%clk 0:00:07.6]} 43.
Nd4 {[%clk 0:00:03.8]} 43... Bd7 {[%clk 0:00:07.8]} 44. Nf3+ {[%clk 0:00:04]}
44... Kf6 {[%clk 0:00:07.8]} 45. Nd4 {[%clk 0:00:04.3]} 45... Rh2 {[%clk
0:00:07.5]} 46. Rf2+ {[%clk 0:00:03.2]} 46... Ke7 {[%clk 0:00:08.1]} 47. Rfe2
{[%clk 0:00:03.2]} 47... g5 {[%clk 0:00:07.1]} 48. Nc2 {[%clk 0:00:03.6]} 48...
g4 {[%clk 0:00:06.8]} 49. Ne3 {[%clk 0:00:04.1]} 49... g3 {[%clk 0:00:07.4]} 50.
Nf1 {[%clk 0:00:04.7]} 50... Rh1 {[%clk 0:00:05.4]} 51. Nxg3 {[%clk 0:00:05]}
51... Rxe1+ {[%clk 0:00:06.1]} 52. Rxe1 {[%clk 0:00:05.9]} 52... Rg8 {[%clk
0:00:06.8]} 53. Re3 {[%clk 0:00:06.7]} 53... Kd6 {[%clk 0:00:06.6]} 54. Kd2
{[%clk 0:00:06.6]} 54... Ke5 {[%clk 0:00:07.2]} 55. Ke2 {[%clk 0:00:07.2]} 55...
Kf4 {[%clk 0:00:07.1]} 56. Kf2 {[%clk 0:00:07.7]} 56... c5 {[%clk 0:00:06.2]}
57. Ne2+ {[%clk 0:00:07.2]} 57... Ke5 {[%clk 0:00:06.4]} 58. Ng3 {[%clk
0:00:04.6]} 58... Bxa4 {[%clk 0:00:05.2]} 59. c4 {[%clk 0:00:04]} 59... Bc6
{[%clk 0:00:03.7]} 60. cxd5 {[%clk 0:00:04.2]} 60... Bxd5 {[%clk 0:00:04.6]} 61.
Re1 {[%clk 0:00:03.6]} 61... b5 {[%clk 0:00:04.3]} 62. Rh1 {[%clk 0:00:03.8]}
62... a5 {[%clk 0:00:04.4]} 63. Rh5+ {[%clk 0:00:03.1]} 63... Kd4 {[%clk
0:00:04.8]} 64. Nf5+ {[%clk 0:00:02.9]} 64... Kd3 {[%clk 0:00:04.6]} 65. Ne7
{[%clk 0:00:02.9]} 65... e3+ {[%clk 0:00:05]} 66. Ke1 {[%clk 0:00:03]} 66...
Rxg2 {[%clk 0:00:03.9]} 67. Rxd5+ {[%clk 0:00:03.1]} 67... Ke4 {[%clk 0:00:04]}
68. Rxc5 {[%clk 0:00:03.2]} 68... b4 {[%clk 0:00:03.9]} 69. Rxa5 {[%clk
0:00:02.8]} 69... Rxb2 {[%clk 0:00:04.1]} 70. Rb5 {[%clk 0:00:02.7]} 70... Kd3
{[%clk 0:00:03.9]} 71. Rd5+ {[%clk 0:00:02.4]} 71... Ke4 {[%clk 0:00:04.5]} 72.
Rb5 {[%clk 0:00:02.8]} 72... b3 {[%clk 0:00:05.1]} 73. Rb6 {[%clk 0:00:02]}
73... Kd3 {[%clk 0:00:05.2]} 74. Rd6+ {[%clk 0:00:02.6]} 74... Ke4 {[%clk
0:00:05.8]} 75. Rb6 {[%clk 0:00:02.9]} 75... Rb1+ {[%clk 0:00:05.5]} 76. Ke2
{[%clk 0:00:02.9]} 76... Rb2+ {[%clk 0:00:06.4]} 77. Ke1 {[%clk 0:00:03.1]}
1/2-1/2